bitfinex/quotes_BTCUSD_20241128
["timestamp","ask_amount","ask_price","bid_price","bid_amount"]
[1732764741976,0.10284521,95040.0,95035.0,0.105224]
[1732764742186,0.10284521,95040.0,95026.0,0.01418014]
[1732764742461,0.105222,95037.0,95026.0,0.01418014]
[1732764742675,0.210449,95035.0,95026.0,0.01418014]
[1732764742902,0.210449,95035.0,95026.0,0.11941414]
[1732764742903,0.105228,95032.0,95026.0,0.11941414]
[1732764743118,0.105228,95032.0,95026.0,0.01418014]
[1732764743119,0.1068057,95027.0,95026.0,0.01418014]
[1732764743334,0.20965091,95027.0,95026.0,0.01418014]
[1732764743560,0.20965091,95027.0,95026.0,0.01518014]
[1732764744000,0.25441791,95027.0,95026.0,0.01418014]
[1732764744199,0.35965091,95027.0,95026.0,0.01518014]
[1732764744655,0.35965091,95027.0,95026.0,0.01418014]
[1732764745132,0.36865091,95027.0,95026.0,0.01418014]
[1732764746662,0.37865091,95027.0,95026.0,0.01418014]
[1732764753002,0.37665091,95027.0,95026.0,0.01418014]
[1732764753400,0.38265091,95027.0,95026.0,0.01418014]
[1732764753621,0.115241,95020.0,95019.0,0.2]
[1732764753884,0.115241,95020.0,95011.0,1.0004]
[1732764753885,0.1268217,95012.0,95011.0,0.46044256]
[1732764754058,0.1268287,95006.0,95001.0,0.005]
[1732764754261,0.01,94952.0,94945.0,0.105323]
[1732764754507,0.01,94952.0,94933.0,0.18856072]
[1732764754508,0.01,94949.0,94944.0,0.00014009]
[1732764754717,0.01,94947.0,94945.0,0.02107991]
[1732764754938,0.00233025,94958.0,94945.0,0.02107991]
[1732764754939,0.01,94946.0,94945.0,0.02107991]
[1732764755171,0.21061,94963.0,94944.0,0.00014009]
[1732764755172,0.01,94945.0,94944.0,0.00014009]
[1732764755389,0.01,94945.0,94928.0,0.210685]
[1732764755390,0.11284521,94945.0,94928.0,0.210685]
[1732764755610,0.01,94951.0,94933.0,0.105337]
[1732764755611,0.01,94934.0,94933.0,0.105337]
[1732764755831,0.01,94934.0,94909.0,0.00047004]
[1732764756054,0.10517583,94944.0,94916.0,0.210711]
[1732764756055,0.01,94933.0,94916.0,0.210711]
[1732764756272,0.01,94933.0,94909.0,0.10331525]
[1732764756273,0.01,94933.0,94917.0,0.1471625]
[1732764756480,0.01,94923.0,94917.0,0.0207374]
[1732764756701,0.01,94934.0,94917.0,0.0207374]
[1732764756902,0.01,94937.0,94918.0,0.105353]
[1732764757029,0.01,94941.0,94924.0,0.105346]
[1732764757227,0.01,94941.0,94919.0,0.03368054]
[1732764757459,0.001,94934.0,94921.0,0.210701]
[1732764757665,0.10384521,94934.0,94919.0,0.03368054]
[1732764757874,0.001,94934.0,94917.0,0.0107374]
[1732764758719,0.01,94935.0,94917.0,0.0107374]
[1732764758720,0.01,94935.0,94917.0,0.00999049]
[1732764758937,0.01,94933.0,94918.0,0.01160954]
[1732764759151,0.01,94933.0,94917.0,0.00999049]
[1732764760446,0.01,94930.0,94917.0,0.00999049]
[1732764760880,0.001,94933.0,94917.0,0.00999049]
[1732764760881,0.001,94933.0,94918.0,0.02207125]
[1732764761114,0.01,94937.0,94918.0,0.12742425]
[1732764761355,0.01,94937.0,94918.0,0.02207125]
[1732764761623,0.01,94937.0,94919.0,0.105352]
[1732764761831,0.01,94937.0,94918.0,0.02207125]
[1732764762039,0.01,94937.0,94919.0,0.01374157]
[1732764762312,0.105337,94933.0,94918.0,0.02207125]
[1732764762535,0.105339,94932.0,94917.0,0.00999049]
[1732764762748,0.011,94933.0,94917.0,0.00999049]
[1732764763723,0.01,94930.0,94917.0,0.00999049]
[1732764764133,0.01,94930.0,94917.0,0.02152574]
[1732764764686,0.10584521,94937.0,94917.0,0.02152574]
[1732764764687,0.003,94937.0,94920.0,0.11621152]
[1732764764802,0.003,94937.0,94936.0,0.105334]
[1732764765053,0.003,94937.0,94921.0,0.12690346]
[1732764765054,0.003,94937.0,94929.0,0.105341]
[1732764765287,0.003,94937.0,94924.0,0.105346]
[1732764765501,0.003,94937.0,94923.0,0.15]
[1732764765502,0.003,94937.0,94925.0,0.03822495]
[1732764765739,0.21063,94953.0,94925.0,0.03822495]
[1732764765740,0.01,94951.0,94926.0,0.10284521]
[1732764765967,0.01,94951.0,94927.0,0.06420429]
[1732764766177,0.008,94933.0,94927.0,0.06420429]
[1732764766403,0.002,94933.0,94929.0,0.210683]
[1732764766666,0.01,94948.0,94927.0,0.06420429]
[1732764766905,0.210654,94942.0,94900.0,0.11786652]
[1732764767131,0.01233041,94942.0,94922.0,0.02115976]
[1732764767341,0.01,94936.0,94903.0,0.21074]
[1732764767573,0.105341,94930.0,94911.0,0.105361]
[1732764767810,0.105335,94935.0,94918.0,0.01062194]
[1732764768096,0.105336,94934.0,94909.0,0.42192404]
[1732764768325,0.105336,94934.0,94916.0,0.105356]
[1732764768535,0.01,94937.0,94909.0,0.42192404]
[1732764768536,0.01,94937.0,94917.0,0.1062134]
[1732764768766,0.105336,94934.0,94917.0,0.00025528]
[1732764768996,0.01,94931.0,94918.0,0.01056123]
[1732764769209,0.210668,94936.0,94917.0,0.00025528]
[1732764769651,0.01,94930.0,94917.0,0.00025528]
[1732764769877,0.01,94930.0,94909.0,0.10108832]
[1732764770085,0.01,94930.0,94910.0,0.0211208]
[1732764770309,0.210685,94928.0,94910.0,0.0211208]
[1732764770786,0.01,94930.0,94910.0,0.0211208]
[1732764771032,0.01,94930.0,94905.0,0.02095732]
[1732764771033,0.105342,94929.0,94905.0,0.02095732]
[1732764771259,0.014,94930.0,94905.0,0.02095732]
[1732764771479,0.210683,94929.0,94905.0,0.02095732]
[1732764771682,0.014,94930.0,94905.0,0.02095732]
[1732764771683,0.105349,94922.0,94905.0,0.02095732]
[1732764771900,0.210685,94928.0,94906.0,0.02308265]
[1732764772131,0.014,94930.0,94906.0,0.02308265]
[1732764772132,0.210717,94914.0,94906.0,0.02308265]
[1732764772340,0.01,94922.0,94900.0,0.001655]
[1732764772549,0.01,94917.0,94900.0,0.001655]
[1732764772766,0.105361,94912.0,94900.0,0.001655]
[1732764772980,0.01,94917.0,94900.0,0.001655]
[1732764773204,0.01,94915.0,94900.0,0.001655]
[1732764773621,0.210719,94913.0,94900.0,0.001655]
[1732764773838,0.10537,94903.0,94900.0,0.001655]
[1732764774055,0.003,94912.0,94900.0,0.001655]
[1732764774290,0.210713,94916.0,94900.0,0.001655]
[1732764774502,0.105362,94911.0,94901.0,0.0317787]
[1732764774708,0.105362,94911.0,94900.0,0.001655]
[1732764774922,0.005,94915.0,94900.0,0.001655]
[1732764775153,0.105339,94932.0,94916.0,0.105355]
[1732764775407,0.01,94935.0,94917.0,0.1158895]
[1732764775408,0.105337,94933.0,94917.0,0.1158895]
[1732764775676,0.105339,94932.0,94917.0,0.105354]
[1732764775901,0.105339,94932.0,94918.0,0.03366859]
[1732764776130,0.105337,94933.0,94919.0,0.105352]
[1732764776339,0.01,94938.0,94910.0,0.13694238]
[1732764776565,0.01,94938.0,94910.0,0.02073086]
[1732764776566,0.105356,94917.0,94910.0,0.02073086]
[1732764776793,0.007,94933.0,94885.0,0.01033729]
[1732764776794,0.01,94931.0,94885.0,0.01033729]
[1732764776999,0.01,94935.0,94885.0,0.01033729]
[1732764777000,0.01,94935.0,94904.0,0.0205665]
[1732764777223,0.105342,94929.0,94905.0,0.12697303]
[1732764777421,0.01,94931.0,94905.0,0.02412782]
[1732764777635,0.10535,94922.0,94905.0,0.105368]
[1732764777854,0.01,94931.0,94911.0,0.105361]
[1732764777855,0.005,94917.0,94911.0,0.105361]
[1732764778065,0.005,94917.0,94914.0,0.105358]
[1732764778296,0.005,94917.0,94904.0,0.0205665]
[1732764778297,0.005,94917.0,94916.0,0.105356]
[1732764778750,0.005,94917.0,94916.0,0.20820121]
[1732764779187,0.220652,94944.0,94918.0,0.421416]
[1732764779188,0.01,94944.0,94918.0,0.421416]
[1732764779406,0.0017188,94948.0,94936.0,0.210667]
[1732764779630,0.0017188,94948.0,94944.0,0.105325]
[1732764779868,0.0017188,94948.0,94944.0,0.14720732]
[1732764780372,0.0017188,94948.0,94936.0,0.02080251]
[1732764780373,0.01,94930.0,94883.0,0.0432186]
[1732764780625,0.01,94927.0,94897.0,0.15]
[1732764780865,0.01,94927.0,94896.0,0.210756]
[1732764780866,0.01,94923.0,94896.0,0.210756]
[1732764781140,0.210699,94922.0,94906.0,0.105366]
[1732764781404,0.105356,94916.0,94907.0,0.03186214]
[1732764781615,0.105356,94916.0,94897.0,0.210752]
[1732764781616,0.105357,94916.0,94897.0,0.210752]
[1732764782070,0.00233093,94922.0,94901.0,0.210745]
[1732764782310,0.00233093,94922.0,94902.0,0.04240114]
[1732764782561,0.03059381,94947.0,94918.0,0.105353]
[1732764782562,0.01,94942.0,94918.0,0.105353]
[1732764782799,0.01,94935.0,94919.0,0.031607]
[1732764783037,0.105338,94932.0,94919.0,0.031607]
[1732764783330,0.105338,94932.0,94915.0,0.210714]
[1732764783331,0.210673,94934.0,94915.0,0.210714]
[1732764783565,0.210673,94934.0,94914.0,0.10284521]
[1732764783566,0.105346,94926.0,94914.0,0.10284521]
[1732764783800,0.001,94916.0,94915.0,0.04400264]
[1732764784032,0.001,94916.0,94909.0,0.02109614]
[1732764784276,0.210687,94928.0,94909.0,0.02109614]
[1732764784277,0.10535,94922.0,94909.0,0.02109614]
[1732764784515,0.01,94933.0,94909.0,0.02109614]
[1732764784744,0.001,94926.0,94913.0,0.210719]
[1732764784979,0.001,94926.0,94925.0,0.105346]
[1732764785215,0.009,94932.0,94915.0,0.15]
[1732764785450,0.009,94932.0,94911.0,0.01365875]
[1732764785451,0.009,94932.0,94916.0,0.10284521]
[1732764785681,0.21065,94945.0,94918.0,0.210708]
[1732764785952,0.00404908,94948.0,94919.0,0.10284521]
[1732764786173,0.002,94922.0,94919.0,0.04411671]
[1732764786401,0.002,94922.0,94917.0,0.105354]
[1732764786857,0.002,94922.0,94912.0,0.0197401]
[1732764787128,0.002,94922.0,94914.0,0.105358]
[1732764787361,0.007,94922.0,94915.0,0.0370581]
[1732764787591,0.105343,94928.0,94915.0,0.0370581]
[1732764787836,0.105347,94925.0,94915.0,0.0370581]
[1732764788107,0.002,94922.0,94916.0,0.01424181]
[1732764788357,0.01,94934.0,94916.0,0.01424181]
[1732764788358,0.105355,94917.0,94916.0,0.01424181]
[1732764788588,0.002,94922.0,94891.0,0.211166]
[1732764788810,0.105353,94919.0,94903.0,0.02137102]
[1732764789033,0.210693,94925.0,94903.0,0.02137102]
[1732764789034,0.105354,94918.0,94907.0,0.105365]
[1732764789260,0.01,94932.0,94910.0,0.105362]
[1732764789493,0.10535,94922.0,94912.0,0.10536]
[1732764789725,0.10535,94922.0,94904.0,0.10284521]
[1732764789726,0.210685,94928.0,94904.0,0.10284521]
[1732764789974,0.0023307,94932.0,94912.0,0.10536]
[1732764790205,0.0023307,94932.0,94903.0,0.02137102]
[1732764790206,0.01,94946.0,94913.0,0.10284521]
[1732764790438,0.01,94949.0,94921.0,0.210701]
[1732764790439,0.003,94922.0,94921.0,0.210701]
[1732764790682,0.003,94922.0,94921.0,0.3581925]
[1732764790926,0.105332,94938.0,94925.0,0.105345]
[1732764791158,0.009,94932.0,94925.0,0.105345]
[1732764791383,0.009,94932.0,94929.0,0.105341]
[1732764791619,0.0017188,94948.0,94931.0,0.210679]
[1732764791845,0.0017188,94948.0,94926.0,0.03581855]
[1732764791846,0.0017188,94948.0,94947.0,0.105321]
[1732764792073,0.0017188,94948.0,94946.0,0.105322]
[1732764792315,0.0017188,94948.0,94947.0,0.105321]
[1732764793016,0.0017188,94948.0,94938.0,0.02070759]
[1732764793247,0.0017188,94948.0,94936.0,0.210668]
[1732764793248,0.0017188,94948.0,94939.0,0.03342208]
[1732764793478,0.0017188,94948.0,94939.0,0.13875208]
[1732764793734,0.0067188,94948.0,94939.0,0.03342208]
[1732764793967,0.0067188,94948.0,94938.0,0.210662]
[1732764794184,0.0067188,94948.0,94943.0,0.105325]
[1732764794414,0.0067188,94948.0,94939.0,0.02126156]
[1732764794415,0.0037188,94948.0,94939.0,0.02126156]
[1732764794640,0.0017188,94948.0,94942.0,0.210654]
[1732764794874,0.0017188,94948.0,94947.0,0.105321]
[1732764795107,0.0037188,94948.0,94947.0,0.20816621]
[1732764796508,0.0037188,94948.0,94947.0,0.105321]
[1732764798129,0.0027188,94948.0,94947.0,0.27111323]
[1732764798597,0.0017188,94948.0,94947.0,0.27111323]
[1732764798858,0.0037188,94948.0,94947.0,0.27111323]
[1732764799084,0.0027188,94948.0,94947.0,0.27111323]
[1732764799301,0.0027188,94948.0,94947.0,0.42111323]
[1732764800029,0.0017188,94948.0,94947.0,0.42111323]
[1732764800480,0.0027188,94948.0,94947.0,0.27111323]
[1732764800934,0.0027188,94948.0,94947.0,0.27311323]
[1732764801156,0.0037188,94948.0,94947.0,0.27311323]
[1732764801431,0.0017188,94948.0,94947.0,0.27111323]
[1732764801876,0.0017188,94948.0,94947.0,0.27311323]
[1732764802986,0.22316877,94983.0,94947.0,0.27311323]
[1732764802987,0.01,94988.0,94948.0,0.15]
[1732764803205,0.01,94988.0,94960.0,0.105307]
[1732764803471,0.01,94980.0,94948.0,0.06944172]
[1732764803663,0.105299,94967.0,94950.0,0.210637]
[1732764803886,0.01232965,94977.0,94954.0,0.105313]
[1732764804102,0.105296,94970.0,94960.0,0.02092458]
[1732764804304,0.210592,94971.0,94960.0,0.02092458]
[1732764804305,0.105299,94968.0,94960.0,0.02092458]
[1732764804519,0.1053,94967.0,94961.0,0.01262346]
[1732764804724,0.01,94977.0,94960.0,0.02092458]
[1732764804949,0.105294,94972.0,94960.0,0.12623058]
[1732764805172,0.105295,94971.0,94961.0,0.03368516]
[1732764805403,0.006,94967.0,94961.0,0.03368516]
[1732764805629,0.006,94967.0,94960.0,0.02092458]
[1732764806052,0.006,94967.0,94966.0,0.1053]
[1732764807473,0.105278,94987.0,94951.0,0.31347821]
[1732764807474,0.01,94992.0,94952.0,0.15]
[1732764807715,0.004,94967.0,94966.0,0.1053]
[1732764807931,0.004,94967.0,94966.0,0.20814521]
[1732764808365,0.007,94967.0,94966.0,0.20814521]
[1732764810166,0.105278,94987.0,94969.0,0.210595]
[1732764810372,0.105277,94988.0,94976.0,0.105289]
[1732764810587,0.210536,94996.0,94970.0,0.10284521]
[1732764810802,0.105273,94991.0,94971.0,0.01677174]
[1732764811027,0.00232913,94996.0,94972.0,0.10284521]
[1732764811275,0.105264,95000.0,94987.0,0.105276]
[1732764811508,0.105263,95000.0,94973.0,0.210586]
[1732764811765,0.008,94996.0,94985.0,0.02152328]
[1732764812197,0.105263,95000.0,94985.0,0.02152328]
[1732764812198,0.01,95000.0,94985.0,0.02152328]
[1732764812427,0.105264,95000.0,94985.0,0.02152328]
[1732764812650,0.220515,95005.0,94987.0,0.105276]
[1732764812651,0.105265,94999.0,94987.0,0.105276]
[1732764812902,0.105268,94996.0,94986.0,0.02320893]
[1732764813106,0.125278,94986.0,94985.0,0.02152328]
[1732764813360,0.125278,94986.0,94953.0,0.05433011]
[1732764813361,0.105314,94954.0,94953.0,0.05433011]
[1732764813589,0.210624,94956.0,94924.0,0.00014009]
[1732764813590,0.210624,94956.0,94928.0,0.14146455]
[1732764813806,0.210624,94956.0,94934.0,0.105335]
[1732764813807,0.00233006,94955.0,94934.0,0.105335]
[1732764814019,0.210628,94954.0,94938.0,0.02061814]
[1732764814261,0.01,94960.0,94929.0,0.10284521]
[1732764814470,0.00233012,94963.0,94953.0,0.004]
[1732764814676,0.006,94956.0,94953.0,0.004]
[1732764815098,0.105311,94957.0,94930.0,0.210681]
[1732764815305,0.210612,94961.0,94831.0,0.53827838]
[1732764815306,0.001,94954.0,94936.0,0.210668]
[1732764815512,0.001,94954.0,94945.0,0.105323]
[1732764816583,0.001,94954.0,94939.0,0.210661]
[1732764816817,0.001,94954.0,94953.0,0.105315]
[1732764817026,0.006,94954.0,94953.0,0.105315]
[1732764819019,0.005,94954.0,94952.0,0.0315964]
[1732764819228,0.005,94954.0,94952.0,0.1369114]
[1732764819460,0.63577784,95019.0,94952.0,0.1369114]
[1732764819461,0.01,94977.0,94952.0,0.13444161]
[1732764819693,0.01,94977.0,94953.0,0.01344416]
[1732764819694,0.105303,94964.0,94953.0,0.01344416]
[1732764819898,0.005,94954.0,94953.0,0.11875816]
[1732764820111,0.105298,94968.0,94954.0,0.105313]
[1732764820329,0.210588,94972.0,94955.0,0.03609896]
[1732764820561,0.21059,94971.0,94955.0,0.03609896]
[1732764820808,0.02,94976.0,94956.0,0.210623]
[1732764821035,0.01232965,94976.0,94953.0,0.01344416]
[1732764821250,0.02232965,94976.0,94953.0,0.01344416]
[1732764821468,0.210565,94983.0,94956.0,0.210623]
[1732764821469,0.005,94968.0,94956.0,0.210623]
[1732764821683,0.005,94968.0,94967.0,0.105299]
[1732764822137,0.005,94968.0,94967.0,0.20814421]
[1732764823253,0.006,94976.0,94975.0,0.10529]
[1732764823487,0.006,94976.0,94975.0,0.1579376]
[1732764823713,0.2122496,94996.0,94975.0,0.1579376]
[1732764823714,0.0017146,94996.0,94978.0,0.210574]
[1732764823933,0.0017146,94996.0,94979.0,0.10284521]
[1732764824165,0.0017146,94996.0,94988.0,0.105275]
[1732764824401,0.0017146,94996.0,94979.0,0.10284521]
[1732764824615,0.0017146,94996.0,94987.0,0.210553]
[1732764824825,0.0017146,94996.0,94979.0,0.10284521]
[1732764825030,0.0137146,94996.0,94982.0,0.210566]
[1732764825253,0.0137146,94996.0,94983.0,0.10284521]
[1732764825470,0.0107146,94996.0,94989.0,0.105275]
[1732764825693,0.0107146,94996.0,94990.0,0.04186792]
[1732764825694,0.0137146,94996.0,94990.0,0.04186792]
[1732764825915,0.0137146,94996.0,94980.0,0.22085352]
[1732764826135,0.0047146,94996.0,94981.0,0.31341121]
[1732764826337,0.105272,94992.0,94981.0,0.10284521]
[1732764826552,0.105276,94989.0,94982.0,0.03134192]
[1732764826791,0.0137146,94996.0,94976.0,0.210579]
[1732764826792,0.105274,94991.0,94979.0,0.20813021]
[1732764827036,0.105275,94990.0,94979.0,0.10284521]
[1732764827248,0.105275,94990.0,94980.0,0.02081302]
[1732764827478,0.210539,94994.0,94980.0,0.02081302]
[1732764827696,0.006,94989.0,94981.0,0.03342332]
[1732764828551,0.006,94989.0,94981.0,0.13870632]
[1732764829178,0.007,94989.0,94981.0,0.03342332]
[1732764829383,0.007,94989.0,94980.0,0.02081302]
[1732764829615,0.007,94989.0,94981.0,0.105283]
[1732764829835,0.001,94989.0,94983.0,0.105281]
[1732764830047,0.001,94989.0,94981.0,0.0231388]
[1732764830253,0.007,94989.0,94983.0,0.105281]
[1732764830465,0.006,94989.0,94984.0,0.03598078]
[1732764830671,0.007,94989.0,94984.0,0.03598078]
[1732764831113,0.001,94989.0,94984.0,0.14126078]
[1732764831311,0.006,94989.0,94985.0,0.01852126]
[1732764831518,0.007,94989.0,94985.0,0.01852126]
[1732764831724,0.007,94989.0,94984.0,0.03598078]
[1732764832193,0.006,94989.0,94984.0,0.03598078]
[1732764832393,0.105279,94985.0,94984.0,0.03598078]
[1732764832602,0.210561,94984.0,94953.0,0.21063]
[1732764832813,0.210561,94984.0,94954.0,0.10284521]
[1732764833027,0.01,94988.0,94960.0,0.02106233]
[1732764833242,0.007,94989.0,94960.0,0.02106233]
[1732764833243,0.001,94989.0,94961.0,0.11523596]
[1732764833482,0.001,94989.0,94985.0,0.105278]
[1732764833705,0.105269,94995.0,94961.0,0.01239075]
[1732764833933,0.001,94989.0,94967.0,0.173]
[1732764834175,0.009,94988.0,94969.0,0.173]
[1732764834410,0.105272,94992.0,94972.0,0.210588]
[1732764834619,0.105272,94992.0,94969.0,0.173]
[1732764834620,0.105274,94991.0,94973.0,0.10284521]
[1732764834853,0.003,94995.0,94977.0,0.105288]
[1732764835085,0.01,94992.0,94974.0,0.13057552]
[1732764835301,0.01,94992.0,94975.0,0.10529]
[1732764835519,0.01,94992.0,94970.0,0.02073175]
[1732764835725,0.01,94992.0,94971.0,0.10284521]
[1732764835726,0.105281,94984.0,94971.0,0.10284521]
[1732764835939,0.01,94991.0,94973.0,0.105292]
[1732764836383,0.210552,94988.0,94973.0,0.105292]
[1732764836625,0.105285,94981.0,94972.0,0.03468391]
[1732764836849,0.105285,94981.0,94973.0,0.1645044]
[1732764837079,0.003,94984.0,94973.0,0.0592124]
[1732764837368,0.210559,94986.0,94973.0,0.0592124]
[1732764837587,0.105281,94984.0,94975.0,0.10529]
[1732764837815,0.105281,94984.0,94976.0,0.03227633]
[1732764838450,0.210559,94985.0,94976.0,0.03227633]
[1732764838682,0.005,94988.0,94976.0,0.03227633]
[1732764838914,0.01,94990.0,94977.0,0.02150657]
[1732764839123,0.003,94984.0,94977.0,0.12679357]
[1732764839355,0.003,94984.0,94977.0,0.02150657]
[1732764839572,0.003,94984.0,94978.0,0.03349388]
[1732764840021,0.210561,94985.0,94964.0,0.01279211]
[1732764840251,0.21055,94989.0,94964.0,0.10284521]
[1732764840252,0.01,94986.0,94964.0,0.10284521]
[1732764840487,0.1053,94966.0,94965.0,0.03380438]
[1732764840714,0.210605,94965.0,94953.0,0.10284521]
[1732764840925,0.01,94971.0,94945.0,0.15420333]
[1732764840926,0.01,94971.0,94954.0,0.02192423]
[1732764841150,0.52648,94970.0,94951.0,0.105316]
[1732764841394,0.315888,94970.0,94951.0,0.10284521]
[1732764841615,0.01,94971.0,94952.0,0.02090192]
[1732764841863,0.01,94971.0,94951.0,0.10284521]
[1732764841864,0.105309,94958.0,94951.0,0.10284521]
[1732764842097,0.105313,94955.0,94948.0,0.000857]
[1732764842307,0.011,94971.0,94949.0,0.23984701]
[1732764842547,0.105312,94956.0,94949.0,0.13452801]
[1732764842742,0.01,94966.0,94949.0,0.0316828]
[1732764842963,0.01,94966.0,94948.0,0.000857]
[1732764843169,0.105317,94952.0,94948.0,0.000857]
[1732764843383,0.005,94970.0,94948.0,0.000857]
[1732764843384,0.210634,94951.0,94948.0,0.000857]
[1732764843596,0.115319,94949.0,94948.0,0.000857]
[1732764844502,0.105319,94949.0,94948.0,0.000857]
[1732764844944,0.210619,94958.0,94948.0,0.000857]
[1732764845214,0.001,94949.0,94948.0,0.107177]
[1732764845420,0.001,94949.0,94948.0,0.0336396]
[1732764845636,0.001,94949.0,94948.0,0.1389596]
[1732764845882,0.002,94949.0,94948.0,0.1389596]
[1732764846328,0.01,94976.0,94949.0,0.05602586]
[1732764846564,0.01,94976.0,94960.0,0.105306]
[1732764846565,0.210588,94972.0,94960.0,0.105306]
[1732764846807,0.01,94976.0,94958.0,0.105308]
[1732764847042,0.01,94976.0,94952.0,0.09435374]
[1732764847043,0.105302,94965.0,94956.0,0.105311]
[1732764847492,0.210599,94967.0,94956.0,0.105311]
[1732764847747,0.210601,94966.0,94957.0,0.07712311]
[1732764847969,0.105304,94963.0,94957.0,0.07712311]
[1732764848187,0.105304,94963.0,94957.0,0.09779904]
[1732764848400,0.210596,94969.0,94957.0,0.02067593]
[1732764848638,0.105306,94962.0,94957.0,0.02067593]
[1732764848864,0.003,94966.0,94958.0,0.13047414]
[1732764849086,0.003,94966.0,94965.0,0.105301]
[1732764849315,0.2222496,94996.0,94978.0,0.105286]
[1732764849316,0.01,94988.0,94978.0,0.105286]
[1732764849552,0.004,94969.0,94968.0,0.105298]
[1732764849789,0.004,94969.0,94968.0,0.41874021]
[1732764850035,0.004,94969.0,94968.0,0.56874021]
[1732764850276,0.004,94969.0,94968.0,0.59174021]
[1732764850935,0.004,94969.0,94968.0,0.60474984]
[1732764851173,0.004,94969.0,94968.0,0.7075813]
[1732764851421,0.001714,94984.0,94983.0,0.255281]
[1732764851659,0.001714,94984.0,94983.0,0.38112621]
[1732764852585,0.002714,94984.0,94983.0,0.38612621]
[1732764852848,0.003714,94984.0,94983.0,0.4497835]
[1732764853086,0.0017146,94996.0,94995.0,0.255268]
[1732764853304,0.0017146,94996.0,94995.0,0.35811321]
[1732764853766,0.0017146,94996.0,94995.0,0.45231877]
[1732764854001,0.0017146,94996.0,94995.0,0.30231877]
[1732764854220,0.0017146,94996.0,94995.0,0.23574214]
[1732764854648,0.0017146,94996.0,94995.0,0.25874214]
[1732764854857,0.0017146,94996.0,94995.0,0.44722063]
[1732764855078,0.0017146,94996.0,94995.0,0.41274214]
[1732764855322,0.0017146,94996.0,94995.0,0.43350803]
[1732764855583,0.0017146,94996.0,94995.0,0.03162893]
[1732764855838,0.1269816,94996.0,94995.0,0.004]
[1732764856083,0.1269816,94996.0,94995.0,0.008]
[1732764856726,0.1269816,94996.0,94995.0,0.004]
[1732764857405,0.0217146,94996.0,94965.0,0.210602]
[1732764857647,0.00232919,94995.0,94973.0,0.105292]
[1732764858085,0.00232919,94995.0,94966.0,0.12603713]
[1732764858086,0.01,94988.0,94976.0,0.105289]
[1732764858307,0.105279,94986.0,94977.0,0.1368752]
[1732764858556,0.0267146,94996.0,94978.0,0.10284521]
[1732764858769,0.0267146,94996.0,94979.0,0.01344324]
[1732764858770,0.0107146,94996.0,94979.0,0.01344324]
[1732764859006,0.0107146,94996.0,94995.0,0.105268]
[1732764859295,0.0107146,94996.0,94980.0,0.10284521]
[1732764859296,0.009,94995.0,94984.0,0.10528]
[1732764859515,0.10527,94994.0,94986.0,0.105278]
[1732764859733,0.10527,94994.0,94987.0,0.105277]
[1732764860208,0.0067146,94996.0,94986.0,0.10284521]
[1732764860645,0.0067146,94996.0,94987.0,0.210555]
[1732764860867,0.105275,94989.0,94988.0,0.05239632]
[1732764861081,0.105279,94986.0,94979.0,0.01344324]
[1732764861322,0.01,94994.0,94982.0,0.105282]
[1732764861538,0.105277,94988.0,94980.0,0.10284521]
[1732764861776,0.105275,94989.0,94982.0,0.105282]
[1732764861989,0.01,94994.0,94982.0,0.210566]
[1732764862206,0.01,94994.0,94989.0,0.105275]
[1732764862435,0.01,94994.0,94990.0,0.0105275]
[1732764862660,0.018,94994.0,94990.0,0.0105275]
[1732764862902,0.018,94994.0,94993.0,0.10527]
[1732764862903,0.002,94994.0,94993.0,0.10527]
[1732764863180,0.002,94994.0,94993.0,0.20811521]
[1732764863422,0.005,94994.0,94993.0,0.27414884]
[1732764863651,0.003,94994.0,94993.0,0.27414884]
[1732764864439,0.003,94994.0,94993.0,0.42414884]
[1732764864614,0.0017146,94996.0,94993.0,0.42414884]
[1732764864615,0.0017146,94996.0,94995.0,0.255268]
[1732764864859,0.0017146,94996.0,94995.0,0.4502215]
[1732764865330,0.0017168,95027.0,94997.0,0.173]
[1732764865569,0.0017168,95027.0,95024.0,0.105236]
[1732764865792,0.0017168,95027.0,95025.0,0.0105236]
[1732764866242,0.0017168,95027.0,95025.0,0.1157586]
[1732764866487,0.0017168,95027.0,95026.0,0.105234]
[1732764866702,0.0047168,95027.0,95026.0,0.105234]
[1732764866962,0.0047168,95027.0,95026.0,0.20807921]
[1732764867211,0.0047168,95027.0,95026.0,0.30221688]
[1732764867427,0.0047168,95027.0,95026.0,0.28712317]
[1732764867672,0.0127168,95027.0,95026.0,0.28712317]
[1732764867912,0.0127168,95027.0,95026.0,0.38114419]
[1732764868151,0.0047168,95027.0,95026.0,0.30813866]
[1732764868365,0.0057168,95027.0,95026.0,0.31613866]
[1732764868616,0.0027168,95027.0,95026.0,0.56009991]
[1732764868842,0.01,95062.0,95048.0,0.105209]
[1732764869105,0.001719,95066.0,95048.0,0.23961861]
[1732764869339,0.01,95065.0,95048.0,0.23961861]
[1732764870480,0.001719,95066.0,95048.0,0.23961861]
[1732764870760,0.001719,95066.0,95048.0,0.39461861]
[1732764871008,0.001719,95066.0,95048.0,0.40061861]
[1732764871252,0.001719,95066.0,95048.0,0.42361861]
[1732764871502,0.001719,95066.0,95055.0,0.105202]
[1732764871739,0.001719,95066.0,95055.0,0.29444957]
[1732764872230,0.001719,95066.0,95055.0,0.27144957]
[1732764873919,0.001719,95066.0,95055.0,0.27544957]
[1732764874143,0.001719,95066.0,95055.0,0.27844957]
[1732764874374,0.0117158,95079.0,95056.0,0.05800429]
[1732764874668,0.01,95076.0,95058.0,0.210397]
[1732764874918,0.0117158,95079.0,95059.0,0.10284521]
[1732764875156,0.105177,95078.0,95067.0,0.105188]
[1732764875393,0.0117158,95079.0,95068.0,0.10284521]